Cogmind - Beta 14 @@@ ROGUE MODE // 2024.08.15 @ 15:54:36 Player: star Result: Destroyed by G-47 Trooper with Particle Gun Performance ------------- Evolutions (2) 1000 Regions Visited (3) 600 Robots Destroyed (40) 200 Value Destroyed (1150) 1150 Prototype IDs (8) 160 Alien Tech Used (0) 0 Bonus (0) 0 TOTAL SCORE: 3110 Bonus ------- None Cogmind --------- Core Integrity 0/550 Matter 274/300 Energy 76/100 System Corruption 5% Temperature Cool (18) Movement Walking (130) Location -8/Materials Parts ------- > --- POWER (1) -------- (None) > --- PROPULSION (2) --- Titanium Leg > --- UTILITY (6) ------ Improved Heat Sink Small Storage Unit Hacking Suite Hacking Suite Hacking Suite > --- WEAPON (2) ------- Enhanced Autogun Enhanced Autogun > --- INVENTORY (8) ---- Light Treads Light Treads Improved Heat Sink High-capacity Matter Pod (200) Transport Network Coupler EMP Blaster Peak State ------------ > --- POWER ------------ (None) > --- PROPULSION ------- Titanium Leg > --- UTILITY ---------- Improved Heat Sink Small Storage Unit Hacking Suite Hacking Suite Hacking Suite > --- WEAPON ----------- Enhanced Autogun Enhanced Autogun > --- INVENTORY -------- Light Treads Light Treads Improved Heat Sink High-capacity Matter Pod Transport Network Coupler EMP Blaster [Rating: 24] Favorites ----------- Power Light Ion Engine Engine Light Ion Engine Power Core Light Nuclear Core Propulsion Light Treads Treads Light Treads Leg Titanium Leg Utility Hacking Suite Device Improved Heat Sink Storage Small Storage Unit Processor Targeting Computer Hackware Hacking Suite Weapon Beam Cannon Energy Gun Improved Medium Laser Energy Cannon Beam Cannon Ballistic Gun Heavy Assault Rifle Launcher EMP Blaster Build | -11 -10 -9 -8 ------- Run | Yrd Mat Mat Mat Slots Evolved 4 | . . 2 2 Power . | . . . . Propulsion . | . . . . Utility 4 | . . 2 2 Weapon . | . . . . Parts Attached 42 | 6 11 6 19 Power 4 | 1 3 . . Engine 3 | 1 2 . . Core 1 | . 1 . . Reactor . | . . . . Propulsion 11 | 2 3 2 4 Treads 9 | 2 3 2 2 Leg 2 | . . . 2 Wheel . | . . . . Hover . | . . . . Flight . | . . . . Utility 11 | 1 2 2 6 Device 6 | . 1 1 4 Storage 1 | 1 . . . Processor 1 | . . . 1 Hackware 3 | . 1 1 1 Protection . | . . . . Artifact . | . . . . Weapon 16 | 2 3 2 9 Energy Gun 3 | 1 . 1 1 Energy Cannon 4 | . 3 . 1 Ballistic Gun 7 | 1 . 1 5 Ballistic Cannon . | . . . . Launcher 2 | . . . 2 Special Weapon . | . . . . Impact Weapon . | . . . . Slashing Weapon . | . . . . Piercing Weapon . | . . . . Special Melee Weapon . | . . . . Unidentified Prototypes 2 | . . 2 . Parts Lost 17 | . 4 . 13 Power 2 | . 1 . 1 Propulsion 5 | . 1 . 4 Utility 3 | . . . 3 Weapon 7 | . 2 . 5 Highest Loss Streak 6 | . 4 . 6 To Critical Strikes . | . . . . Average Slot Usage (%) 89 | . 86 99 73 Engine 8 | . 6 11 4 Treads 19 | . 26 22 7 Device 7 | . . 11 9 Storage 11 | . 14 11 9 Hackware 19 | . 9 22 25 Energy Gun 4 | . 6 4 4 Energy Cannon 12 | . 13 17 2 Ballistic Gun 3 | . 6 . 6 Peak Build Rating 24 | 6 10 19 24 Average Rating 14 | 3 7 16 18 On Entrance 8 | . 6 10 19 Naked Turns . | . . . . Heaviest Build 15 | 13 14 15 15 Greatest Support 43 | 40 40 43 43 Greatest Overweight (x) 4 | . . . 4 Average Overweight (x) . | . . . . Largest Inventory Capacity 8 | 8 8 8 8 Average Capacity 7 | 6 8 8 8 Most Carried 8 | . 6 8 8 Average Carried 5 | . 2 7 5 Final Capacity 8 | 8 8 8 8 Final Carried 8 | . 6 8 6 Class Distribution -------------------- 47% | Hacker-Mutant 29% | Mutant 23% | Scavenger-Mutant Dominant Class ---------------- Mutant | -10/Materials Hacker-Mutant | -9/Materials Hacker-Mutant | -8/Materials Resources | -11 -10 -9 -8 ----------- Run | Yrd Mat Mat Mat Matter Collected 1044 | 125 288 234 397 Remotely . | . . . . Salvage Created 1585 | . 657 325 603 Parts 81 | . 47 17 17 Haulers Intercepted 4 | . 2 2 . Recyclers Shooed 3 | . . 1 2 Parts Field Recycled . | . . . . Retrieved Matter . | . . . . Parts Self-Destructed . | . . . . Prevented . | . . . . Kills | -11 -10 -9 -8 ------- Run | Yrd Mat Mat Mat Combat Hostiles Destroyed 25 | . 11 3 11 Guns 13 | . 5 . 8 Cannons 9 | . 5 3 1 AOE 3 | . 1 . 2 Classes Destroyed 8 | . 5 1 2 Worker 3 | . 2 1 . Builder 2 | . 2 . . Hauler 4 | . 2 2 . Recycler 2 | . . 1 1 Operator 4 | . 3 . 1 Grunt 21 | . 11 3 7 Brawler 2 | . . . 2 Sentry 2 | . . . 2 Best Kill Streak 6 | . 6 3 3 Combat Bots Only 3 | . 3 3 3 Max Kills in Single Turn 4 | . 4 1 2 Gunslinging . | . . . . Exploded 2 | . 1 . 2 Melee . | . . . . Uniques/NPCs Destroyed . | . . . . Combat | -11 -10 -9 -8 -------- Run | Yrd Mat Mat Mat Hostile Shots Fired 214 | . 44 3 167 Missed 52 | . 7 . 45 Damage Taken 2616 | . 630 34 1952 Core 668 | . 105 . 563 Absorbed by Shields . | . . . . Core Remaining (%) 86 | 100 58 100 . Volleys Fired 148 | . 44 20 84 Largest 2 | . 2 2 2 Hottest 120 | . 120 120 116 Shots Fired 236 | . 88 37 111 Gun 137 | . 50 1 86 Cannon 94 | . 38 36 20 Launcher 5 | . . . 5 Special . | . . . . Kinetic 83 | . 25 . 58 Thermal 123 | . 38 37 48 Explosive 2 | . . . 2 Electromagnetic 28 | . 25 . 3 Robot Hit Streak 12 | . 9 8 12 Robot Miss Streak 4 | . 4 3 2 Penetration Max . | . . . . Secondary Targets 1 | . . . 1 Max Gunslinging Chain 1 | . . . 1 Shots Hit Robots 147 | . 49 21 77 Core Hits 71 | . 29 7 35 Critical Kills . | . . . . Critical Parts Destroyed . | . . . . Critical Strikes 3 | . . . 3 Burn 3 | . . . 3 Melee Attacks . | . . . . Impact . | . . . . Slashing . | . . . . Piercing . | . . . . Sneak Attacks . | . . . . Combat Hostiles . | . . . . Follow-up Attacks . | . . . . Damage Inflicted 3139 | . 1018 366 1755 Guns 1326 | . 348 . 978 Cannons 947 | . 317 366 264 Explosions 866 | . 353 . 513 Melee . | . . . . Ramming . | . . . . Kinetic 803 | . 124 . 679 Thermal 1599 | . 670 366 563 Explosive 276 | . . . 276 Electromagnetic 461 | . 224 . 237 Impact . | . . . . Slashing . | . . . . Piercing . | . . . . Highest Corruption 5 | . . . 5 Average Corruption 4 | . . . 4 Corruption Purged . | . . . . Corruption Blocked . | . . . . Effects 12 | . . . 12 Message Errors 2 | . . . 2 Matter Fused 3 | . . . 3 Heat Flow Errors 1 | . . . 1 Energy Discharges 1 | . . . 1 Parts Rejected 1 | . . . 1 Data Loss (minor) 3 | . . . 3 Weapon Failures 1 | . . . 1 Overload Shots . | . . . . Overflow Damage 108 | . 106 . 2 Projectiles 5 | . 5 . . Explosions 103 | . 101 . 2 Melee . | . . . . Knockbacks . | . . . . Impact . | . . . . Kinetic . | . . . . Secondary . | . . . . Self-Inflicted Damage 177 | . 165 . 12 Shots 4 | . 3 . 1 Rammed . | . . . . Targets Rammed . | . . . . Kicked . | . . . . Crushed . | . . . . Highest Temperature 308 | . 259 308 88 Average Temperature 60 | . 75 53 21 Received Heat Transfer 1368 | . 297 18 1053 Siege Activations . | . . . . Robots Corrupted . | . . . . Combat Hostiles . | . . . . Parts Fried . | . . . . Impact Corruptions . | . . . . Robots Melted . | . . . . Combat Hostiles . | . . . . Parts Melted 8 | . . . 8 Heat Transferred 3186 | . 966 777 1443 Parts Sabotaged . | . . . . Parts Stolen . | . . . . Parts Stripped . | . . . . Power Chain Reactions 1 | . 1 . . Alert | -11 -10 -9 -8 ------- Run | Yrd Mat Mat Mat Peak Influence 329 | . 329 169 262 Initial 113 | . . 113 7 Average 110 | . 164 82 117 Maximum Alert Level 1 | . 1 . 1 Low Security (%) 87 | 100 61 100 90 Level 1 12 | . 38 . 9 Level 2 . | . . . . Level 3 . | . . . . Level 4 . | . . . . Level 5 . | . . . . High Security . | . . . . Max Security . | . . . . Squads Dispatched 5 | . 3 1 1 Investigation 1 | . . 1 . Extermination . | . . . . Reinforcement 4 | . 3 . 1 Assault . | . . . . Garrison . | . . . . Intercept . | . . . . Searches Triggered . | . . . . Construction Impeded . | . . . . Haulers Reinforced . | . . . . Active Scanning Responses . | . . . . Cargo Convoy Interrupts . | . . . . Stealth | -11 -10 -9 -8 --------- Run | Yrd Mat Mat Mat Distress Signals 6 | . 1 1 4 Communications Jammed . | . . . . Distress Signals . | . . . . Times Spotted 59 | . 21 12 26 Peak Tracking Total 7 | . 3 4 7 Tactical Retreats 7 | . 1 . 6 Traps | -11 -10 -9 -8 ------- Run | Yrd Mat Mat Mat Traps Triggered 2 | . 1 . 1 Indirectly . | . . . . Trap Hack Attempts . | . . . . Triggered . | . . . . Disarmed . | . . . . Reprogrammed . | . . . . Reused . | . . . . Traps Extracted . | . . . . Installed . | . . . . Triggered . | . . . . Machines | -11 -10 -9 -8 ---------- Run | Yrd Mat Mat Mat Machines Disabled 6 | . 4 1 1 Max in Single Turn 3 | . 3 1 1 Machines Repaired . | . . . . Machines Dismantled . | . . . . Machines Sabotaged . | . . . . Overloaded Fab Kills . | . . . . Hacking | -11 -10 -9 -8 --------- Run | Yrd Mat Mat Mat Machines Accessed 11 | . 3 7 1 Terminals 11 | . 3 7 1 Fabricators . | . . . . Repair Stations . | . . . . Recycling Units . | . . . . Scanalyzers . | . . . . Garrison Access . | . . . . Total Hacks 41 | . 15 23 3 Successful 19 | . 8 9 2 Failed 22 | . 7 14 1 Catastrophic 2 | . . 2 . Database Lockouts . | . . . . Manual 25 | . 8 16 1 Terminals 41 | . 15 23 3 Fabricators . | . . . . Repair Stations . | . . . . Recycling Units . | . . . . Scanalyzers . | . . . . Garrison Access . | . . . . Terminal Hacks 12 | . 5 5 2 Record 2 | . 1 1 . Prototype ID Bank 3 | . 1 1 1 Recycling Unit Index 1 | . 1 . . Garrison Index 1 | . . 1 . Investigation Status 1 | . . 1 . Hauler Manifests 1 | . 1 . . Registered Components 2 | . 1 . 1 Zone Layout 1 | . . 1 . Fabricator Hacks . | . . . . Repair Station Hacks . | . . . . Recycling Unit Hacks . | . . . . Scanalyzer . | . . . . Garrison Access Hacks . | . . . . Unauthorized Hacks 7 | . 3 4 . Terminals 7 | . 3 4 . Botnet 3 | . 1 2 . Operators 4 | . 2 2 . Fabricators . | . . . . Repair Stations . | . . . . Recycling Units . | . . . . Scanalyzers . | . . . . Garrison Access . | . . . . Data Cores Recovered . | . . . . Used . | . . . . Hacking Detections 11 | . 3 7 1 Full Trace Events 2 | . . 2 . Feedback Events . | . . . . Feedback Blocked . | . . . . Robot Schematics Acquired . | . . . . Robots Built . | . . . . Authchips . | . . . . Time . | . . . . Total Robot Build Rating . | . . . . Part Schematics Acquired . | . . . . Parts Built . | . . . . Authchips . | . . . . Time . | . . . . Total Part Build Rating . | . . . . Parts Repaired . | . . . . Time . | . . . . Parts Recycled . | . . . . Recycled Matter . | . . . . Retrieved Matter . | . . . . Retrieved Components . | . . . . Parts Scanalyzed . | . . . . Part Schematics Acquired . | . . . . Parts Damaged . | . . . . Bothacking | -11 -10 -9 -8 ------------ Run | Yrd Mat Mat Mat Used RIF Installer . | . . . . Robots Hacked . | . . . . Non-combat . | . . . . Combat . | . . . . Robot Hacks Applied . | . . . . Relay Couplers Released . | . . . . Fabnet Peak Effective % . | . . . . Robots Rewired . | . . . . Allies Hacked . | . . . . Hacks Repelled . | . . . . Allies | -11 -10 -9 -8 -------- Run | Yrd Mat Mat Mat Total Allies . | . . . . Largest Group . | . . . . Highest-Rated Group . | . . . . Highest-Rated Ally . | . . . . Total Orders . | . . . . Ally Attacks . | . . . . Total Damage . | . . . . Kills . | . . . . Allies Corrupted . | . . . . Allies Melted . | . . . . Intel | -11 -10 -9 -8 ------- Run | Yrd Mat Mat Mat Robot Analysis Total . | . . . . Derelict Logs Recovered . | . . . . Drone Launches . | . . . . Drone Recoveries . | . . . . Exploration | -11 -10 -9 -8 ------------- Run | Yrd Mat Mat Mat Turns Passed 2393 | 64 629 1108 592 Spaces Moved 972 | 37 277 443 215 Core 46 | 3 . . 43 Treads 828 | 34 277 443 74 Legs 98 | . . . 98 Wheels . | . . . . Hover . | . . . . Flight . | . . . . Fastest Speed 50 | 50 160 160 130 Average Speed 159 | 151 160 160 158 Slowest Speed 250 | 160 160 160 250 Overloaded Moves . | . . . . Propulsion Burnouts . | . . . . Robots Hopped . | . . . . Cave-ins Triggered . | . . . . Exploration Rate (%) 28 | 4 49 44 16 Regions Visited 3 Branch Regions . Pre-discovered Areas . | . . . . Known Exits Taken . | . . . . Unknown Exits Taken 3 | 1 1 1 . Scrap Searched . | . . . . Spaces Dug . | . . . . Terrain Destroyed 55 | . 43 . 12 Melee . | . . . . Projectile . | . . . . AOE 55 | . 43 . 12 Terrain Rammed . | . . . . Walls Destroyed . | . . . . Machines Disabled . | . . . . Actions | -11 -10 -9 -8 --------- Run | Yrd Mat Mat Mat Total 1574 | 42 374 808 350 Wait 398 | . 38 329 31 Move 969 | 36 276 442 215 Hop . | . . . . Pick Up 11 | . 5 6 . Fast Attach 27 | 6 7 1 13 Attach 5 | . . 2 3 Detach 1 | . . . 1 Swap 10 | . 4 3 3 Drop 5 | . . 5 . Fire 148 | . 44 20 84 Melee . | . . . . Ram . | . . . . Kick . | . . . . Crush . | . . . . Escape Stasis . | . . . . Rewire . | . . . . Trap . | . . . . Miscellaneous . | . . . . Route ------- -11/Scrapyard -10/Materials -9/Materials -8/Materials (discovered 1 exit: [*Sto]) History --------- Turn | Location | Event 19 | -11/Scrapyard | Discovered new exit (range 15) 65 | -11/Scrapyard | Entered Materials 317 | -10/Materials | Build established: Mutant 411 | -10/Materials | Lost 4 parts (1p1n2w) 681 | -10/Materials | Discovered new exit (range 6) 694 | -10/Materials | Entered another Materials area 694 | -9/Materials | Evolved 2 slots: Utility x2 1002 | -9/Materials | Build established: Scavenger-Mutant 1442 | -9/Materials | Build established: Hacker-Mutant 1461 | -9/Materials | Discovered new exit (range 3) 1802 | -9/Materials | Entered another Materials area 1802 | -8/Materials | Evolved 2 slots: Utility x2 1987 | -8/Materials | Lost 6 parts (2n1u3w) 2178 | -8/Materials | Core integrity fell below 50% 2229 | -8/Materials | Lost 4 parts (2n1u1w) 2289 | -8/Materials | Discovered new exit (range 16) 2378 | -8/Materials | Core integrity fell below 20% 2394 | -8/Materials | Destroyed by G-47 Trooper with Particle Gun Last Messages --------------- 02292_ System corrupted: Component data lost. 02293_ Acquired 20 matter. 02301_ W-25 Informer sends out distress signal. 02333_ System corrupted: Component data lost. 02352_ W-25 Informer sends out distress signal. 02356_ Critical hit (Burn: +37). 02369_ W-25 Informer sends out distress signal. 02370_ Critical hit (Burn: +37). 02373_ System corrupted: Titanium Leg rejected. 02373_ Acquired Titanium Leg. 02384_ A-02 Transporter destroyed. 02385_ K-01 Serf collects debris. 02385_ Hvy. Assault Rifle destroyed. 02386_ Acquired Enh. Autogun. 02388_ Acquired 33 matter. 02390_ Acquired Enh. Autogun. 02391_ K-01 Serf collects debris. 02394_ G-47 Trooper destroyed. 02394_ Switching to secondary target: Y-45 Defender. 02394_ K-01 Serf collects debris. Map ----- +----------------------------------------------------+ | ## # ???????????????????????????????????????? | | ## #####??????????????????????????????????????? | | ## ###############???????????????????????????? | | ^^ #???????????????????????????? | | !| #???????????????????????????? | | != #???????????????????????????? | | ## ##### ##### #???????????????????????????? | | ?# #######/##??# #???????????????????????????? | | ?# #?# # #???????????????????????????? | | ?# #?# + +???????????????????????????? | | ?# #?# # #???????????????????????????? | | ?# #?# ??# #???????????????????????????? | | ?# % #?# ????# #########+###???????????????? | | ?# #?# ??????# ??????????????? | | ?# #?#!????????# ??????????????? | | ?# #???????????# ??????????????? | | ?# #???????????# #############???????????????? | | ?# #???????????# #???????????????????????????? | | ?# #???????????# #???????????????????????????? | | ?# #???????????# #???????????????????????????? | | ?# #???????????# #???????????????????????????? | | ?# #???????????# #???????????????????????????? | | ? ##+######### #??????????????? ##????????? | | # ############## #????????? | | # < g *% [! k g #????????? | | # = @% Y + "?????? | | # ##+######### =! Y #????????? | | ### ###??????????################## / #????????? | | ??# ????????????????????????????????????#????????? | | ??# ?????????????????????????????????????????????? | | ??? ?????????????????????????????????????????????? | | ??? ?????????????????????????????????????????????? | | ??? ?????????????????????????????????????????????? | | ?????????????????????????????????????????????????? | | ?????????????????????????????????????????????????? | | ?????????????????????????????????????????????????? | | ?????????????????????????????????????????????????? | | ?????????????????????????????????????????????????? | | ?????????????????????????????????????????????????? | | ?????????????????????????????????????????????????? | | ?????????????????????????????????????????????????? | | ?????????????????????????????????????????????????? | | ?????????????????????????????????????????????????? | | ?????????????????????????????????????????????????? | | ?????????????????????????????????????????????????? | | ?????????????????????????????????????????????????? | | ?????????????????????????????????????????????????? | | ?????????????????????????????????????????????????? | | ?????????????????????????????????????????????????? | | ?????????????????????????????????????????????????? | +----------------------------------------------------+ Best States ------------- Heat Dissipation 59 Energy Generation 14 Energy Capacity 250 Matter Stores 300 Matter Capacity 300 Sight Range 16 Terrain Scan Density 10 Evasion (%) 55 Targeting Accuracy 5 Recoil Reduction 2 Offensive Hacking 30 Item Schematics ----------------- None Robot Schematics ------------------ None Fabricated ------------ Nothing Alien Tech Used ----------------- None Achievements -------------- None Challenges ------------ None Game ------ Seed BlastPropulsionShredder Manual? 0 Play Time 00:21:10 Cumulative 52.2 hours Start 2024.08.15 @ 15:34:53 End 2024.08.15 @ 15:54:36 Sessions 1 Manual Loads 0 Difficulty Rogue Special Mode None Game No. 95 Rogue 95 Adventurer 0 Explorer 0 Win Type - Total 0 Types 0/0/0/0/0/0/0/0/0 Lore% 21 Gallery% 42 Achievement% 34 Wizard Run 0 Options --------- Layout 0 ASCII 0 Keyboard 0 Movement Numpad Keybinds 0 Fullscreen 2 Font 18/SmallcapsGlow Map View 76x50 Zoom Use 0% Tactical HUD 1 Map Filters NONE Filters NONE Steam 1 RUN: f864b037-d1ca-41c0-b5c3-3b16edb578e6